bitfinex/quotes_ETHUSD_20241204
["timestamp","ask_amount","ask_price","bid_price","bid_amount"]
[1733274718129,2.70585,3695.7,3695.4,1.79719271]
[1733274718483,2.70562,3696.0,3695.4,1.79719271]
[1733274718639,1.5231,3696.1,3695.4,1.79719271]
[1733274718640,2.70572,3695.9,3695.4,1.79719271]
[1733274719026,2.70579,3695.8,3695.4,1.79719271]
[1733274719242,4.0,3695.5,3695.4,1.79719271]
[1733274719872,4.30582,3696.6,3695.4,1.79719271]
[1733274719873,1.6006,3696.6,3695.4,1.79719271]
[1733274720027,10.3606,3696.6,3695.4,1.79719271]
[1733274720226,2.7054,3696.3,3695.4,1.79719271]
[1733274720466,2.70596,3695.6,3695.4,1.79719271]
[1733274720672,5.6348,3695.5,3695.4,1.79719271]
[1733274721507,8.6348,3695.5,3695.4,1.79719271]
[1733274722571,5.6348,3695.5,3695.4,1.79719271]
[1733274724276,4.0,3695.5,3695.4,1.79719271]
[1733274724784,2.70578,3695.8,3695.4,1.79719271]
[1733274724945,0.270578,3695.7,3695.4,1.79719271]
[1733274725146,3.0,3695.5,3695.4,1.79719271]
[1733274725346,4.5822,3695.5,3695.4,1.79719271]
[1733274726090,3.0,3695.5,3695.4,1.79719271]
[1733274726261,1.6116,3696.0,3695.4,1.79719271]
[1733274726262,2.70578,3695.8,3695.4,1.79719271]
[1733274726586,1.6116,3696.0,3695.4,1.79719271]
[1733274726587,0.16116,3695.9,3695.4,1.79719271]
[1733274727146,1.6116,3696.0,3695.4,1.79719271]
[1733274727346,2.70571,3695.9,3695.4,1.79719271]
[1733274727586,2.70577,3695.8,3695.4,1.79719271]
[1733274727743,4.0,3695.5,3695.4,1.79719271]
[1733274729205,1.5839,3696.4,3695.4,1.79719271]
[1733274729363,4.0589064,3696.5,3695.4,1.79719271]
[1733274729548,8.76,3696.6,3695.4,1.79719271]
[1733274729950,2.70548,3696.2,3695.4,1.79719271]
[1733274730199,8.76,3696.6,3695.4,1.79719271]
[1733274730556,2.7057,3695.9,3695.4,1.79719271]
[1733274730782,2.70526,3696.5,3695.4,1.79719271]
[1733274730783,2.70594,3695.6,3695.4,1.79719271]
[1733274730949,4.561034,3695.6,3695.4,1.79719271]
[1733274731388,1.855094,3695.6,3695.4,1.79719271]
[1733274731700,4.5414,3696.2,3695.4,1.79719271]
[1733274732052,4.0,3695.5,3695.4,1.79719271]
[1733274733102,4.0,3695.5,3695.4,3.32419271]
[1733274733264,4.248,3696.6,3695.4,3.32419271]
[1733274733452,0.270504,3696.7,3695.5,0.02705935]
[1733274733793,1.6341,3697.1,3695.7,2.70582]
[1733274733949,2.70497,3696.9,3695.5,0.33241927]
[1733274734149,2.70505,3696.8,3695.5,3.03839927]
[1733274734349,1.6341,3697.1,3695.5,0.33241927]
[1733274734593,1.03941,3697.0,3695.4,3.32419271]
[1733274734802,11.46496,3696.9,3695.4,1.79719271]
[1733274735106,2.70557,3696.1,3695.4,1.79719271]
[1733274735452,2.7056,3696.1,3695.4,1.79719271]
[1733274735652,11.76,3696.6,3695.4,1.79719271]
[1733274735885,11.76,3696.6,3695.5,1.5094]
[1733274736192,4.24124,3697.3,3696.0,2.7056]
[1733274736503,4.30595,3697.9,3696.5,2.70525]
[1733274736653,4.30595,3697.9,3696.6,0.270525]
[1733274736849,2.70425,3697.9,3696.2,1.5486]
[1733274737053,4.0,3696.7,3696.2,1.5486]
[1733274737265,4.0,3696.7,3696.5,2.70523]
[1733274737501,2.70429,3697.9,3696.2,1.5486]
[1733274737791,2.70394,3698.3,3696.2,1.5486]
[1733274737995,0.45773643,3698.3,3696.5,2.70522]
[1733274738149,2.70439,3697.7,3696.3,2.70539]
[1733274738589,2.70439,3697.7,3696.2,1.5486]
[1733274738813,2.70439,3697.7,3696.4,2.70532]
[1733274739102,2.70418,3698.0,3696.8,1.5369]
[1733274739824,0.27185427,3698.5,3698.1,2.70406]
[1733274739953,0.27185427,3698.5,3697.7,1.5369]
[1733274739954,4.0,3698.2,3697.7,1.5369]
[1733274740150,1.5765,3699.8,3698.0,2.70414]
[1733274740351,2.70292,3699.7,3697.7,1.5369]
[1733274740573,2.97539674,3699.0,3697.7,1.5369]
[1733274740793,2.70339,3699.1,3697.7,4.24127]
[1733274741026,2.70352,3698.9,3697.7,1.5369]
[1733274741293,2.70343,3699.0,3696.7,2.70507]
[1733274741500,2.70343,3699.0,3697.1,2.7048]
[1733274741501,11.46343,3699.0,3697.1,2.7048]
[1733274741655,2.7035,3698.9,3697.1,2.7048]
[1733274741853,2.70387,3698.4,3697.1,2.7048]
[1733274742655,1.30666,3698.8,3697.4,1.5549]
[1733274742851,4.01024,3698.8,3697.4,1.5549]
[1733274743054,1.6031,3698.1,3696.1,1.5549]
[1733274743533,2.70438,3697.7,3696.1,1.5549]
[1733274743656,5.70436,3697.8,3696.1,1.5549]
[1733274743857,8.76,3698.0,3696.4,1.5549]
[1733274744057,1.6031,3699.4,3696.9,1.5549]
[1733274744296,1.6031,3699.4,3697.8,1.5549]
[1733274744699,2.70344,3699.0,3697.8,1.5549]
[1733274745257,4.6031,3699.4,3697.8,4.25919]
[1733274745453,2.70337,3699.1,3697.8,4.25919]
[1733274745710,2.70343,3699.0,3697.8,1.5549]
[1733274746009,0.730622,3699.3,3697.8,1.5549]
[1733274746175,0.27219936,3699.7,3698.3,2.70393]
[1733274746375,0.27219936,3699.7,3698.2,1.5549]
[1733274746577,2.70338,3699.1,3698.2,1.5549]
[1733274746779,2.70304,3699.6,3698.3,0.02703896]
[1733274747072,1.5858,3700.4,3698.3,0.02703565]
[1733274747387,2.70264,3700.1,3698.8,1.6161]
[1733274747589,2.7027,3700.0,3698.8,1.6161]
[1733274747899,2.97297,3700.0,3698.8,1.6161]
[1733274748099,2.7027,3700.0,3698.8,1.6161]
[1733274748710,0.27186529,3700.7,3698.8,1.64313261]
[1733274748915,0.27186529,3700.7,3699.3,2.70316]
[1733274749071,0.27186529,3700.7,3699.6,2.70297]
[1733274749275,1.5163,3701.9,3700.1,2.70259]
[1733274749468,2.7017,3701.4,3699.8,1.6098]
[1733274749726,2.70154,3701.6,3700.1,2.70261]
[1733274749889,0.270154,3701.5,3699.9,1.6098]
[1733274750077,0.27110876,3701.9,3700.1,2.70262]
[1733274750425,1.5163,3702.6,3700.7,1.6098]
[1733274750603,2.7017,3701.4,3700.7,1.6098]
[1733274750980,2.70151,3701.7,3700.7,1.6098]
[1733274751285,2.70135,3701.9,3700.7,1.6098]
[1733274751482,2.7014,3701.8,3700.7,1.6098]
[1733274751713,2.70121,3702.1,3700.7,1.6098]
[1733274751917,4.21712,3702.6,3700.7,1.6098]
[1733274751918,0.02362703,3701.7,3700.7,1.6098]
[1733274752075,2.70126,3702.0,3700.7,1.6098]
[1733274752311,1.5163,3702.6,3700.8,0.02701776]
[1733274752474,1.5163,3702.6,3700.7,1.6098]
[1733274752475,2.70106,3702.3,3700.9,0.16368178]
[1733274752710,0.1575772,3702.8,3701.0,1.66981505]
[1733274753216,0.1575772,3702.8,3702.1,1.6428]
[1733274754022,0.1575772,3702.8,3702.2,0.02700754]
[1733274754230,0.1575772,3702.8,3702.3,0.16698075]
[1733274754529,0.1575772,3702.8,3702.4,1.5125]
[1733274754826,0.1575772,3702.8,3702.5,0.02700459]
[1733274755019,0.1575772,3702.8,3702.4,1.5125]
[1733274755390,0.1575772,3702.8,3702.4,1.68044808]
[1733274755983,0.1575772,3702.8,3702.5,0.02700477]
[1733274756186,0.1575772,3702.8,3702.6,1.5635]
[1733274757125,0.02414205,3702.7,3702.6,1.5635]
[1733274757491,0.1575772,3702.8,3702.6,1.5635]
[1733274757694,0.02414205,3702.7,3702.6,1.5635]
[1733274757899,0.15731925,3702.8,3702.6,1.5635]
[1733274758178,0.15731925,3702.8,3702.6,1.98995]
[1733274758379,0.15731925,3702.8,3702.6,1.5635]
[1733274758628,0.15731925,3702.8,3702.7,0.02700213]
[1733274758816,0.15731925,3702.8,3702.7,4.5921]
[1733274759017,0.15731925,3702.8,3702.7,1.6921]
[1733274759319,0.15731925,3702.8,3702.7,2.05139]
[1733274760174,0.15731925,3702.8,3702.7,1.5921]
[1733274761193,0.15731925,3702.8,3701.1,1.5005]
[1733274761425,2.70081,3702.6,3701.3,0.1]
[1733274761720,0.15731925,3702.8,3701.6,1.5005]
[1733274762420,2.70093,3702.5,3701.6,1.5005]
[1733274762721,4.0,3702.4,3701.6,1.5005]
[1733274762895,4.0,3702.4,3701.6,1.65055]
[1733274763096,4.0,3702.4,3701.6,4.35206]
[1733274763328,0.15731925,3702.8,3702.1,2.70115]
[1733274763493,0.15731925,3702.8,3702.3,1.5528]
[1733274764112,0.15731925,3702.8,3702.3,1.57980524]
[1733274764291,0.15731925,3702.8,3702.3,1.5528]
[1733274764696,0.15731925,3702.8,3700.9,1.5627]
[1733274764918,2.70117,3702.1,3700.9,1.5627]
[1733274765116,2.70073,3702.7,3700.9,1.5627]
[1733274765431,2.70108,3702.3,3700.9,1.58971642]
[1733274765598,2.70093,3702.5,3701.1,2.70187]
[1733274765798,2.85798925,3702.8,3701.2,0.42915864]
[1733274766031,2.85798925,3702.8,3701.1,1.65901064]
[1733274766032,0.15731925,3702.8,3701.5,2.70158]
[1733274766382,0.15731925,3702.8,3701.4,1.632]
[1733274766584,0.15731925,3702.8,3701.4,4.33365]
[1733274766823,0.15731925,3702.8,3701.6,2.70151]
[1733274767027,2.85798925,3702.8,3701.5,0.433365]
[1733274767235,0.15731925,3702.8,3702.0,1.6128]
[1733274767686,0.15731925,3702.8,3702.1,0.02700757]
[1733274767888,0.15731925,3702.8,3702.1,0.02700581]
[1733274768128,0.15731925,3702.8,3702.2,0.16398058]
[1733274769627,0.15731925,3702.8,3702.0,1.6128]
[1733274770434,0.15731925,3702.8,3701.5,1.5259]
[1733274770728,2.70093,3702.5,3701.5,1.5259]
[1733274771275,0.15731925,3702.8,3701.5,1.5259]
[1733274771526,2.70119,3702.1,3701.0,1.6434]
[1733274771712,0.15731925,3702.8,3701.1,0.02701575]
[1733274772028,2.85799925,3702.8,3701.0,1.6434]
[1733274772243,2.7008,3702.6,3701.0,1.6434]
[1733274772438,2.70125,3702.0,3701.0,1.6434]
[1733274772937,2.70095,3702.4,3701.1,0.0270177]
[1733274773136,1.6656,3702.7,3701.1,0.0270177]
[1733274773448,0.15731925,3702.8,3701.5,2.70159]
[1733274774027,0.15731925,3702.8,3701.9,4.32409]
[1733274774329,0.15731925,3702.8,3702.0,0.02700792]
[1733274774625,0.15731925,3702.8,3702.7,1.5039]
[1733274776025,0.15731925,3702.8,3701.6,1.5597]
[1733274776227,2.70084,3702.6,3701.6,1.5597]
[1733274776430,0.28581592,3702.5,3701.6,1.5597]
[1733274776630,0.15731925,3702.8,3701.6,4.26122]
[1733274776958,0.15731925,3702.8,3701.6,1.5597]
[1733274777160,2.70088,3702.5,3701.6,1.5597]
[1733274777306,0.15731925,3702.8,3701.6,1.5597]
[1733274777502,0.15731925,3702.8,3701.9,2.7013]
[1733274777746,0.15731925,3702.8,3702.0,0.02700966]
[1733274777933,0.15731925,3702.8,3702.3,2.701]
[1733274778645,0.15731925,3702.8,3702.1,0.02700552]
[1733274778959,0.15731925,3702.8,3702.6,2.70078]
[1733274779251,0.15731925,3702.8,3702.7,1.5989]
[1733274781106,9.25e-06,3702.8,3702.7,1.5989]
[1733274781344,0.94632779,3703.4,3703.3,2.70029]
[1733274781509,0.94632779,3703.4,3703.3,4.769066]
[1733274782255,1.60146817,3705.2,3703.5,2.70013]
[1733274782550,1.60146817,3705.2,3704.2,2.69961]
[1733274783068,1.60146817,3705.2,3704.0,2.69974]
[1733274783349,1.60146817,3705.2,3704.2,2.69961]
[1733274783534,1.60146817,3705.2,3704.7,2.69926]
[1733274783709,1.60146817,3705.2,3704.6,2.69933]
[1733274783909,1.60146817,3705.2,3704.3,1.5287]
[1733274784112,1.60146817,3705.2,3704.5,2.69941]
[1733274784306,1.60146817,3705.2,3704.9,2.69911]
[1733274785455,1.5294,3705.1,3703.4,1.602]
[1733274785660,1.5294,3705.1,3704.0,2.69973]
[1733274785857,1.60146817,3705.2,3704.3,1.5709]
[1733274786356,1.60146817,3705.2,3705.0,2.699]
[1733274787865,1.60146817,3705.2,3704.5,2.69935]
[1733274788166,1.60146817,3705.2,3704.5,0.02698854]
[1733274788315,1.60146817,3705.2,3704.6,2.69933]
[1733274788810,1.60146817,3705.2,3704.7,2.69926]
[1733274789212,1.60146817,3705.2,3705.0,2.69902]
[1733274789513,1.60146817,3705.2,3704.3,4.42753]
[1733274789711,1.60146817,3705.2,3704.3,1.5709]
[1733274789946,1.60146817,3705.2,3703.8,1.6398]
[1733274790158,1.60146817,3705.2,3702.2,2.70103]
[1733274790159,1.60146817,3705.2,3703.3,2.720078]
[1733274790359,2.69919,3704.9,3703.3,5.44735602]
[1733274790668,1.5673,3704.2,3703.3,1.080278]
[1733274790868,1.5673,3704.2,3702.1,0.15817]
[1733274790869,1.5673,3704.2,3702.4,1.6152]
[1733274791040,1.72403,3704.2,3702.8,1.080536]
[1733274791237,1.72403,3704.2,3702.4,1.6152]
[1733274791451,2.7001,3703.6,3702.4,1.6152]
[1733274791656,1.5673,3703.5,3702.0,1.6152]
[1733274791838,2.70037,3703.2,3702.1,0.431646]
[1733274792038,4.26746,3703.5,3702.0,1.080751]
[1733274792254,2.7004,3703.2,3701.6,1.6152]
[1733274792570,1.5673,3703.5,3701.7,1.10785297]
[1733274792719,1.5438,3704.5,3701.8,1.5612]
[1733274792927,1.5438,3705.0,3703.0,1.5612]
[1733274793227,1.5438,3705.0,3703.6,2.70003]
[1733274793452,1.5438,3705.0,3703.5,2.70014]
[1733274793654,0.31452682,3704.9,3703.5,2.970154]
[1733274793864,0.31452682,3704.9,3703.5,0.270014]
[1733274794064,0.31452682,3704.9,3703.6,0.0269967]
[1733274794244,0.31452682,3704.9,3703.8,2.6999]
[1733274794570,1.5438,3705.0,3703.6,2.70006]
[1733274795063,2.69949,3704.4,3703.0,4.26165]
[1733274795266,2.69986,3703.9,3702.6,1.657]
[1733274795422,1.6533,3703.7,3702.6,1.657]
[1733274795624,1.6533,3703.7,3702.6,0.43579]
[1733274795869,1.6533,3703.7,3702.2,0.02700675]
[1733274796071,1.6533,3703.7,3702.1,1.657]
[1733274796264,4.35334,3703.7,3702.3,2.70099]
[1733274796429,2.70016,3703.5,3702.1,1.657]
[1733274796632,2.70016,3703.5,3702.2,0.46350853]
[1733274796966,1.6533,3703.7,3701.7,1.080843]
[1733274797183,2.70059,3702.9,3701.7,1.080843]
[1733274797341,1.6567,3702.8,3701.5,1.5174]
[1733274797549,2.70088,3702.5,3701.0,4.21933]
[1733274797747,2.70088,3702.5,3701.3,1.080999]
[1733274798042,2.70103,3702.3,3701.3,0.5300289]
[1733274798241,2.70103,3702.3,3701.1,1.081061]
[1733274798581,2.70073,3702.7,3701.0,1.5174]
[1733274798877,1.6366,3702.1,3701.0,0.421954]
[1733274799241,1.6366,3702.1,3700.8,1.081133]
[1733274799472,0.2,3702.4,3699.9,1.5402]
[1733274799473,1.6366,3701.3,3700.0,2.70268]
[1733274799774,1.6366,3701.3,3699.5,1.081527]
[1733274799983,2.70199,3701.0,3699.5,3.784567]
[1733274800157,2.70199,3701.0,3699.6,3.2354567]
[1733274800872,2.70191,3701.1,3699.6,0.5324767]
[1733274801081,4.0,3700.9,3699.6,0.5324767]
[1733274801435,2.70213,3700.8,3699.6,0.5324767]
[1733274801631,1.5588,3700.8,3698.8,1.5054]
[1733274801974,2.70221,3700.7,3699.2,2.70326]
[1733274802143,4.0,3700.5,3699.2,2.70326]
[1733274802332,4.0,3700.5,3699.3,0.270326]
[1733274803234,4.0,3700.5,3698.4,1.5054]
[1733274803433,2.70257,3700.2,3698.4,1.5054]
[1733274803749,2.90184,3701.2,3698.4,4.20926]
[1733274803750,1.5914,3700.0,3698.4,4.20926]
[1733274803948,2.70294,3699.7,3698.4,1.5054]
[1733274804154,0.55914,3699.9,3697.9,1.5679]
[1733274804340,0.55914,3699.9,3698.0,0.02703564]
[1733274804556,2.70295,3699.7,3698.2,2.70397]
[1733274804762,3.188299,3699.7,3698.2,2.70397]
[1733274804956,2.70309,3699.5,3697.9,4.2721]
[1733274805163,4.5145,3699.6,3697.3,1.5679]
[1733274805364,2.70368,3698.7,3697.4,0.15679]
[1733274805535,2.70353,3698.9,3697.4,0.15679]
[1733274806275,2.70381,3698.5,3697.4,0.15679]
[1733274806437,1.5803,3698.4,3697.0,2.70486]
[1733274806773,1.5803,3698.4,3697.1,0.0270434]
[1733274806937,1.5803,3698.4,3696.7,4.29068]
[1733274807137,2.70422,3698.0,3696.4,2.7053]
[1733274807339,2.70422,3698.0,3696.2,1.5856]
[1733274807340,0.270422,3698.0,3696.5,0.45613873]
[1733274807573,2.70405,3698.2,3696.6,2.70517]
[1733274807763,4.0,3697.9,3696.6,2.70517]
[1733274808635,1.5803,3697.7,3694.7,1.5856]
[1733274808913,2.7046,3697.4,3695.7,2.70581]
[1733274809241,3.0,3697.5,3695.8,0.27328661]
[1733274809400,2.70463,3697.4,3695.9,0.02705403]
[1733274809603,3.9059695,3697.4,3695.9,0.48622209]
[1733274809837,4.0,3697.2,3695.9,3.19188209]
[1733274810038,4.0,3697.2,3695.9,2.70566]
[1733274810244,1.2013395,3697.4,3695.9,2.70566]
[1733274810539,1.2013395,3697.4,3696.0,0.02705282]
[1733274810699,1.2013395,3697.4,3696.0,2.73265282]
[1733274810903,1.5803,3697.7,3696.1,2.70553]
[1733274810904,7.2847,3697.7,3696.1,2.70553]
[1733274811313,1.5803,3697.7,3696.2,0.02705084]
[1733274811656,1.5803,3697.7,3696.6,2.70516]
[1733274811861,1.5803,3697.7,3696.7,0.02704879]
[1733274812023,1.5803,3697.7,3696.8,2.705]
[1733274812644,1.5803,3697.7,3696.7,1.6449]
[1733274813007,2.70352,3698.9,3697.3,2.70466]
[1733274813207,1.5791,3698.8,3696.8,0.02704856]
[1733274813406,1.5791,3698.8,3697.4,2.70458]
[1733274813643,1.5791,3698.8,3697.5,0.02704264]
[1733274813818,1.5791,3698.8,3697.6,2.70441]
[1733274814020,1.73701,3698.8,3697.3,2.70465]
[1733274814230,2.70374,3698.6,3697.0,1.5662]
[1733274814405,2.7038,3698.5,3697.0,1.5662]
[1733274814612,1.73701,3698.8,3697.1,0.02704498]
[1733274814861,1.5791,3698.8,3697.2,2.70474]
[1733274815012,1.5791,3698.8,3697.2,0.02703896]
[1733274815212,1.5791,3698.8,3698.1,2.70407]
[1733274815554,1.6298,3699.3,3697.9,2.70422]
[1733274815759,1.6298,3699.3,3697.5,2.70453]
[1733274816065,1.5675,3699.3,3697.6,2.7314875]
[1733274816211,1.5675,3699.3,3698.1,2.70408]
[1733274816405,1.5675,3699.3,3698.1,2.974488]
[1733274816714,0.1,3700.6,3698.1,2.974488]
[1733274816715,2.70268,3700.1,3698.2,0.02703749]
[1733274816944,2.90226,3700.6,3698.3,2.70387]
[1733274817459,2.70275,3700.0,3698.4,2.70385]
[1733274817759,2.70254,3700.3,3698.9,2.70349]
[1733274817911,2.70271,3700.0,3698.6,2.70369]
[1733274818111,0.2,3701.0,3698.4,0.4614358]
[1733274818112,0.15,3700.8,3698.4,0.4614358]
[1733274818355,2.70294,3699.7,3698.4,0.23719438]
[1733274818649,2.703,3699.6,3698.3,2.7039]
[1733274819148,2.70274,3700.0,3698.5,2.70377]
[1733274819470,2.70274,3700.0,3698.6,2.70371]
[1733274819746,0.431334,3699.9,3698.6,2.70371]
[1733274819946,1.6106,3700.1,3698.6,0.07703343]
[1733274820168,1.6106,3701.3,3699.6,2.70299]
[1733274820306,1.6106,3701.3,3699.3,0.05]
[1733274820508,2.70211,3700.9,3699.4,2.70312]
[1733274820814,0.270211,3700.8,3699.4,2.70312]
[1733274821049,0.270211,3700.8,3699.2,2.70327]
[1733274821214,1.6496,3700.7,3699.2,0.05]
[1733274821419,1.6496,3700.7,3699.4,2.7031]
[1733274821825,1.6496,3700.7,3699.5,0.02702779]
[1733274822137,1.6496,3701.3,3700.1,0.05]
[1733274822466,3.9733,3700.2,3700.1,2.75262]
[1733274822765,2.70141,3701.8,3700.1,2.75262]
[1733274822766,1.6389,3701.8,3700.9,2.70203]
[1733274822976,1.6389,3702.5,3701.2,0.05]
[1733274823273,1.6389,3703.2,3702.5,2.70083]
[1733274823425,1.6283,3703.8,3702.4,0.05]
[1733274823989,1.6283,3703.8,3702.4,2.75092]
[1733274824190,4.32825,3703.8,3702.4,0.05]
[1733274824989,1.6283,3703.8,3702.8,0.05]
[1733274825198,1.6283,3703.8,3702.8,2.75063]
[1733274825348,0.269941,3704.5,3702.8,2.75063]
[1733274825349,1.6388,3704.4,3702.9,2.72755151]
[1733274825549,0.4608111,3704.3,3702.9,2.70055]
[1733274825767,1.6388,3704.4,3702.9,2.70055]
[1733274826092,2.69988,3703.9,3702.5,0.05]
[1733274826518,1.6388,3704.4,3702.4,1.561]
[1733274826795,1.5556,3704.4,3702.5,0.07700713]
[1733274827011,2.69963,3704.2,3702.8,2.70063]
[1733274827151,2.69963,3704.2,3702.7,0.05]
[1733274827551,2.69963,3704.2,3702.7,2.75071]
[1733274827827,2.69963,3704.2,3702.7,0.05]
[1733274827990,1.5556,3704.4,3702.7,0.05]
[1733274828163,0.15556,3704.3,3702.4,1.6178]
[1733274828358,2.69971,3704.1,3702.4,1.6178]
[1733274828562,2.70024,3703.4,3701.9,1.5103]
[1733274828762,4.2613,3703.3,3701.9,1.5103]
[1733274828985,2.70037,3703.2,3702.0,0.426166]
[1733274829202,1.561,3703.3,3701.9,1.5103]
[1733274829385,4.26131,3703.3,3702.1,0.05]
[1733274829587,1.561,3703.3,3702.1,0.05]
[1733274829902,4.35628,3703.9,3702.5,0.05]
[1733274830265,1.6564,3703.9,3702.5,0.05]
[1733274830707,1.6564,3703.9,3703.2,0.05]
[1733274830856,1.5182,3704.7,3702.3,1.644]
[1733274831059,2.69975,3704.1,3702.8,0.05]
[1733274831825,2.69979,3704.0,3702.8,0.05]
[1733274832329,1.5182,3704.7,3702.4,0.05]
[1733274832330,4.5182,3704.7,3702.4,0.05]
[1733274832496,4.5263,3704.3,3702.3,1.644]
[1733274832696,1.5263,3704.2,3702.6,0.05]
[1733274832878,1.5263,3704.2,3702.3,1.644]
[1733274832879,4.22597,3704.2,3702.8,2.75064]
[1733274833084,1.5263,3704.2,3702.9,0.275064]
[1733274833280,1.5263,3704.2,3702.3,1.644]
[1733274833527,1.6186,3703.4,3701.7,1.5284]
[1733274833710,2.70046,3703.1,3701.7,1.5284]
[1733274833911,2.70067,3702.8,3702.6,1.080653]
[1733274834125,2.70102,3702.4,3701.3,1.5284]
[1733274834329,2.7008,3702.6,3701.3,1.68624]
[1733274834531,1.561,3702.9,3701.3,1.68624]
[1733274834756,0.431906,3703.1,3700.2,1.5897]
[1733274834757,1.561,3701.8,3700.2,1.5897]
[1733274835057,2.7022,3700.7,3700.3,1.08132]
[1733274835203,4.561,3701.8,3699.7,1.5725]
[1733274835401,2.70214,3700.8,3699.8,0.427554]
[1733274835601,2.70214,3700.8,3699.7,2.603992]
[1733274835803,2.70214,3700.8,3699.7,2.653992]
[1733274836200,2.70153,3701.6,3699.7,1.5225]
[1733274836410,3.0,3701.5,3699.7,1.5225]
[1733274836652,0.615763,3701.4,3699.8,2.77986615]
[1733274836832,1.561,3701.8,3700.5,0.05]
[1733274837003,1.561,3701.8,3699.7,1.5225]
[1733274837004,2.70146,3701.7,3699.7,1.5225]
[1733274837205,1.561,3701.8,3699.7,1.5225]
[1733274837405,2.70198,3701.0,3699.8,0.2654026]
[1733274837903,2.70212,3700.8,3699.8,0.2654026]
[1733274838647,0.1561,3701.7,3699.8,0.2654026]
[1733274839215,2.70219,3700.7,3699.8,0.2654026]
[1733274839346,0.1561,3701.7,3699.7,1.5225]
[1733274839347,3.0,3701.5,3699.7,1.5225]
[1733274839548,2.70183,3701.2,3699.7,1.5225]
[1733274839746,2.70201,3701.0,3699.8,0.02702687]
[1733274839948,2.70131,3702.0,3699.8,0.02702687]
[1733274839949,1.5588,3702.4,3701.0,2.75194]
[1733274840147,2.70046,3703.1,3701.0,2.75197]
[1733274840148,4.0,3701.1,3701.0,2.75197]
[1733274840376,1.6385,3703.1,3701.5,0.05]
[1733274840568,1.6385,3703.1,3702.1,4.21474]
[1733274840787,0.73359244,3704.6,3702.1,4.21474]
[1733274840788,1.6385,3703.6,3702.1,1.5136]
[1733274840991,2.70023,3703.4,3702.2,0.15636]
[1733274841304,1.6385,3703.6,3702.3,0.05]
[1733274841466,1.60146817,3705.2,3703.7,0.05]
[1733274841796,1.60146817,3705.2,3702.7,2.70071]
[1733274841797,0.28179642,3705.1,3704.5,0.05]
[1733274842151,1.60146817,3705.2,3704.5,0.05]
[1733274842673,1.60146817,3705.2,3704.7,0.05]
[1733274843685,1.60146817,3705.2,3704.5,2.69939]
[1733274844006,1.60146817,3705.2,3704.2,1.6501]
[1733274844185,1.60146817,3705.2,3704.4,2.69947]
[1733274844385,1.60146817,3705.2,3704.2,1.6501]
[1733274844696,1.60146817,3705.2,3704.4,2.69947]
[1733274844849,1.60146817,3705.2,3704.5,2.6994]
[1733274845362,1.60146817,3705.2,3704.5,1.5532]
[1733274845692,1.60146817,3705.2,3704.6,0.02698711]
[1733274845855,1.60146817,3705.2,3705.0,2.69904]
[1733274846702,1.60146817,3705.2,3704.7,2.69923]
[1733274846880,1.60146817,3705.2,3704.6,0.44207015]
[1733274847079,1.60146817,3705.2,3704.5,1.5532]
[1733274847619,1.60146817,3705.2,3704.5,4.25259]
[1733274847818,1.60146817,3705.2,3704.5,1.5532]
[1733274847969,1.66337817,3705.2,3704.5,1.5532]
[1733274848402,0.06191,3705.1,3704.5,1.5532]
[1733274848913,0.06191,3705.1,3704.6,0.02699023]
[1733274849061,0.06191,3705.1,3704.7,1.5225]
[1733274850193,0.06191,3705.1,3704.1,1.5795]
[1733274851163,0.06191,3705.1,3704.0,0.00252705]
[1733274851164,1.5429,3705.0,3704.0,0.00252705]
[1733274851396,0.06189876,3704.9,3704.0,0.00252705]
[1733274852167,2.76105876,3704.9,3704.0,0.00252705]
[1733274852515,2.69922,3704.8,3704.0,0.00252705]
[1733274852812,0.06188763,3704.7,3704.0,0.00252705]
[1733274853264,2.69944,3704.5,3704.0,0.00252705]
[1733274853467,0.06188763,3704.4,3704.0,0.00252705]
[1733274853893,0.06188763,3704.4,3704.0,1.58722705]
[1733274854106,0.06188763,3704.4,3704.1,0.15872271]
[1733274854325,0.06188763,3704.4,3704.0,1.58722705]
[1733274854800,0.06188763,3704.4,3704.0,0.00252705]
[1733274855323,2.69958,3704.3,3704.0,0.00252705]
[1733274855629,0.06188763,3704.2,3704.0,0.00252705]
[1733274856803,0.06188763,3704.2,3704.1,1.6659]
[1733274856986,0.06188763,3704.2,3704.1,1.83274271]
[1733274857725,0.06188763,3704.2,3704.0,0.00252705]
[1733274858746,2.76153763,3704.2,3704.0,0.00252705]
[1733274858921,2.75535993,3704.2,3704.0,0.00252705]
[1733274859247,1.6646,3704.1,3704.0,0.00252705]
[1733274859921,1.7203298,3704.1,3704.0,0.00252705]
[1733274860131,2.16232778,3704.1,3704.0,0.00252705]
[1733274860536,2.70023,3703.4,3701.9,1.588]
[1733274860726,0.05574951,3703.3,3701.9,1.588]
[1733274861107,2.70044,3703.1,3701.9,1.588]
[1733274861341,1.57374951,3703.0,3701.9,1.588]
[1733274861544,0.05575751,3702.9,3701.9,1.588]
[1733274861742,0.48318626,3702.9,3701.9,1.588]
[1733274861947,0.48318626,3702.9,3700.0,2.70267]
[1733274861948,2.70125,3702.0,3700.7,1.6223]
[1733274862115,0.05576549,3701.9,3700.7,1.6223]
[1733274862315,2.7014,3701.8,3700.7,1.6223]
[1733274862516,0.05577341,3701.7,3700.7,1.6223]
[1733274863911,0.05577341,3701.7,3700.8,0.02701764]
[1733274864222,0.05577341,3701.7,3700.7,1.78453]
[1733274864926,2.75725341,3701.7,3700.7,1.78453]
[1733274865257,0.05577341,3701.7,3700.2,1.6223]
[1733274865462,2.70174,3701.4,3700.2,1.6223]
[1733274865760,2.75756267,3701.3,3700.2,1.6223]
[1733274865965,0.05579267,3701.2,3700.2,1.6223]